bitfinex/quotes_BTCUSD_20250408
["timestamp","ask_amount","ask_price","bid_price","bid_amount"]
[1744076938479,1.06489359,80382.0,80381.0,0.00242182]
[1744076938677,1.02890191,80382.0,80381.0,0.00242182]
[1744076938889,1.07189533,80382.0,80381.0,0.00242182]
[1744076939114,1.06389533,80382.0,80381.0,0.00242182]
[1744076939521,1.02990191,80382.0,80381.0,0.00242182]
[1744076939639,1.03890191,80382.0,80381.0,0.00242182]
[1744076940139,1.02990191,80382.0,80381.0,0.00242182]
[1744076940336,0.92990191,80382.0,80381.0,0.00242182]
[1744076940601,0.93890191,80382.0,80381.0,0.00242182]
[1744076942486,1.06830736,80382.0,80381.0,0.00242182]
[1744076943087,1.06830736,80382.0,80367.0,0.0003362]
[1744076943088,0.012442,80368.0,80367.0,0.0003362]
[1744076943294,1.73166655,80368.0,80367.0,0.00012665]
[1744076943602,1.73166655,80368.0,80367.0,6.5e-07]
[1744076944506,0.60133,80358.0,80357.0,0.00023413]
[1744076944705,0.8909987,80358.0,80357.0,0.00023413]
[1744076945126,0.90553955,80358.0,80357.0,0.00023413]
[1744076946264,0.90553955,80358.0,80357.0,0.0001316]
[1744076946907,0.91053955,80358.0,80357.0,0.0001316]
[1744076947470,0.93001334,80358.0,80357.0,0.0001316]
[1744076948186,0.93301334,80358.0,80357.0,0.0001316]
[1744076948657,0.67685695,80358.0,80357.0,0.0001316]
[1744076948829,0.18799446,80358.0,80357.0,0.2614646]
[1744076949034,0.17879024,80358.0,80357.0,0.2614646]
[1744076949234,0.17879024,80358.0,80357.0,0.3558646]
[1744076949235,0.16828,80358.0,80357.0,0.3558646]
[1744076949850,0.98656629,80368.0,80367.0,0.2613]
[1744076949993,1.14580629,80368.0,80367.0,0.2613]
[1744076950421,1.48580629,80368.0,80365.0,0.012443]
[1744076950873,1.48580629,80368.0,80365.0,0.261304]
[1744076951072,1.48580629,80368.0,80366.0,0.261301]
[1744076951272,1.14680629,80368.0,80367.0,0.012442]
[1744076951715,1.14680629,80368.0,80367.0,0.1902307]
[1744076951913,0.98756629,80368.0,80367.0,0.1902307]
[1744076952091,1.14680629,80368.0,80367.0,0.1902307]
[1744076952295,1.14680629,80368.0,80367.0,0.060842]
[1744076953993,0.15924,80377.0,80376.0,0.307271]
[1744076954214,0.00042126,80398.0,80393.0,0.248777]
[1744076954564,0.00042126,80398.0,80392.0,0.012439]
[1744076954565,0.171678,80397.0,80392.0,0.012439]
[1744076954691,0.15924,80397.0,80392.0,0.261218]
[1744076954894,0.15924,80397.0,80390.0,0.248784]
[1744076954895,0.012438,80396.0,80390.0,0.248784]
[1744076955113,0.34,80394.0,80390.0,0.248784]
[1744076955325,0.34,80392.0,80390.0,0.248784]
[1744076955535,0.98652,80393.0,80390.0,0.261223]
[1744076955689,0.98652,80393.0,80392.0,0.261219]
[1744076955890,0.34,80392.0,80386.0,0.261235]
[1744076956137,0.01244,80381.0,80376.0,0.0944]
[1744076956336,0.012441,80379.0,80376.0,0.0944]
[1744076956510,0.352441,80377.0,80376.0,0.046]
[1744076956895,0.012441,80374.0,80368.0,0.0484]
[1744076957226,0.012441,80374.0,80368.0,0.060842]
[1744076957849,0.012442,80369.0,80368.0,0.0484]
[1744076958054,0.34,80371.0,80368.0,0.006]
[1744076958704,0.34,80371.0,80368.0,0.024442]
[1744076959115,0.001,80369.0,80368.0,0.030442]
[1744076959341,0.001,80369.0,80368.0,0.024442]
[1744076959548,0.352441,80373.0,80368.0,0.012442]
[1744076959752,0.001,80369.0,80368.0,0.016442]
[1744076961301,0.001,80369.0,80368.0,0.025442]
[1744076963853,0.013442,80369.0,80368.0,0.013]
[1744076964059,0.7316827,80369.0,80368.0,0.013]
[1744076964586,0.7266827,80369.0,80368.0,0.013]
[1744076965084,0.81042394,80369.0,80368.0,0.013]
[1744076965306,0.61587085,80358.0,80351.0,0.002]
[1744076965476,0.601349,80352.0,80351.0,0.002]
[1744076965682,0.601349,80352.0,80351.0,0.00212629]
[1744076965683,0.74527855,80352.0,80351.0,0.00212629]
[1744076966434,0.78128506,80352.0,80351.0,0.00212629]
[1744076966639,0.74527855,80352.0,80351.0,0.00212629]
[1744076966840,0.79253802,80352.0,80351.0,0.00212629]
[1744076967378,0.79453802,80352.0,80351.0,0.00212629]
[1744076967796,0.01325377,80352.0,80351.0,0.00212629]
[1744076967986,0.01325377,80352.0,80351.0,0.01457129]
[1744076968185,0.01125377,80352.0,80351.0,0.01457129]
[1744076968401,0.01425377,80352.0,80351.0,0.00212629]
[1744076968605,0.01225377,80352.0,80351.0,0.00212629]
[1744076968780,0.01525377,80352.0,80351.0,0.00212629]
[1744076968956,0.01725377,80352.0,80351.0,0.00212629]
[1744076969157,0.02969877,80352.0,80351.0,0.00212629]
[1744076969385,0.02669877,80352.0,80351.0,0.00212629]
[1744076969787,0.02669877,80352.0,80351.0,0.00312629]
[1744076970381,0.02169877,80352.0,80351.0,0.00312629]
[1744076970751,0.02169877,80352.0,80351.0,0.00412629]
[1744076970952,0.00925377,80352.0,80351.0,0.00412629]
[1744076971131,0.00925377,80352.0,80351.0,0.01657129]
[1744076971327,0.34,80355.0,80353.0,0.012445]
[1744076971527,0.34,80355.0,80354.0,0.012444]
[1744076971930,0.34,80357.0,80351.0,0.26547529]
[1744076972316,0.34,80357.0,80352.0,0.012445]
[1744076972513,0.34,80357.0,80351.0,0.26447529]
[1744076972514,1.20914,80384.0,80356.0,0.261336]
[1744076972711,0.16588,80367.0,80364.0,0.30691]
[1744076972944,0.98664,80384.0,80376.0,0.012441]
[1744076973097,0.98664,80384.0,80368.0,0.012442]
[1744076973098,0.35244,80381.0,80368.0,0.012442]
[1744076973460,0.34,80375.0,80366.0,0.248859]
[1744076973633,0.352441,80375.0,80368.0,0.012442]
[1744076973955,0.352441,80375.0,80369.0,0.012442]
[1744076974155,0.34,80375.0,80370.0,0.248849]
[1744076974359,0.34949776,80375.0,80374.0,0.012441]
[1744076974564,0.34,80373.0,80372.0,0.012442]
[1744076976362,0.342,80373.0,80372.0,0.012442]
[1744076976977,0.342,80373.0,80369.0,0.26129]
[1744076976978,0.344,80373.0,80369.0,0.26129]
[1744076977499,0.344,80373.0,80365.0,0.012443]
[1744076977781,0.012442,80372.0,80365.0,0.012443]
[1744076977939,0.352442,80371.0,80365.0,0.012443]
[1744076978502,0.34,80371.0,80370.0,0.012442]
[1744076979158,0.34,80373.0,80368.0,0.248855]
[1744076979355,0.34,80373.0,80370.0,0.012442]
[1744076979536,0.012442,80372.0,80365.0,0.013443]
[1744076979752,0.012442,80372.0,80365.0,0.012443]
[1744076980315,0.012442,80372.0,80366.0,0.261304]
[1744076980654,0.261272,80376.0,80365.0,0.014443]
[1744076980655,0.16588,80416.0,80411.0,0.261158]
[1744076980857,0.16588,80416.0,80413.0,0.261151]
[1744076981062,0.11141379,80414.0,80413.0,0.261151]
[1744076981266,0.0001683,80427.0,80413.0,0.261151]
[1744076981267,3e-07,80422.0,80421.0,0.248691]
[1744076981497,0.1658803,80422.0,80421.0,0.39300026]
[1744076981701,0.00012667,80422.0,80421.0,0.3905137]
[1744076982132,0.16600667,80422.0,80421.0,0.3905137]
[1744076982903,0.16700667,80422.0,80421.0,0.3905137]
[1744076983312,0.16600667,80422.0,80421.0,0.3905137]
[1744076983531,0.16700667,80422.0,80421.0,0.3975137]
[1744076983986,0.16700667,80422.0,80421.0,0.4065137]
[1744076984126,0.16800667,80422.0,80421.0,0.4065137]
[1744076984951,0.00312667,80422.0,80421.0,0.4085137]
[1744076985142,0.16896667,80422.0,80421.0,0.279125]
[1744076987941,0.16596667,80422.0,80421.0,0.261125]
[1744076988126,0.16696667,80422.0,80421.0,0.270125]
[1744076988331,0.16796667,80422.0,80421.0,0.270125]
[1744076988763,0.16696667,80422.0,80421.0,0.268125]
[1744076988937,0.16696667,80422.0,80421.0,0.270125]
[1744076988938,0.16796667,80422.0,80421.0,0.270125]
[1744076989558,0.16796667,80422.0,80421.0,0.009]
[1744076989761,0.18040067,80422.0,80421.0,0.009]
[1744076989936,0.52040067,80422.0,80421.0,0.009]
[1744076990140,0.51940067,80422.0,80421.0,0.002]
[1744076990660,0.52040067,80422.0,80421.0,0.008]
[1744076990861,0.52040067,80422.0,80421.0,0.002]
[1744076991039,0.012435,80418.0,80411.0,0.012436]
[1744076991242,0.261145,80415.0,80405.0,0.248739]
[1744076991441,0.012436,80411.0,80401.0,0.012437]
[1744076991639,0.248766,80397.0,80389.0,0.012439]
[1744076991844,0.248759,80399.0,80389.0,0.012439]
[1744076991845,1.15172,80396.0,80394.0,0.012438]
[1744076992042,1.15172,80396.0,80387.0,0.0493]
[1744076992043,0.4118,80419.0,80416.0,0.012435]
[1744076992258,1.49172,80417.0,80411.0,0.248721]
[1744076992587,1.49172,80417.0,80411.0,0.263157]
[1744076992787,1.49172,80417.0,80411.0,0.002]
[1744076992788,1.504155,80417.0,80411.0,0.002]
[1744076992906,0.012435,80416.0,80411.0,0.007]
[1744076993108,0.012435,80412.0,80411.0,0.005]
[1744076993367,0.352436,80411.0,80403.0,0.012437]
[1744076993511,0.34,80411.0,80403.0,0.012437]
[1744076993715,0.34,80409.0,80403.0,0.012437]
[1744076994267,0.34,80409.0,80402.0,0.261186]
[1744076994447,0.34,80409.0,80402.0,0.24875]
[1744076994647,0.34,80409.0,80401.0,0.012437]
[1744076995053,0.34,80407.0,80399.0,0.012437]
[1744076995240,0.34,80405.0,80399.0,0.012437]
[1744076995477,0.34,80405.0,80399.0,0.261194]
[1744076996441,0.261188,80402.0,80392.0,0.261217]
[1744076996629,0.261188,80402.0,80399.0,0.002]
[1744076996991,0.352437,80401.0,80399.0,0.002]
[1744076997247,0.601193,80400.0,80399.0,0.002]
[1744076997454,0.261213,80394.0,80383.0,0.261248]
[1744076997632,0.261213,80394.0,80392.0,0.003]
[1744076997833,0.34,80395.0,80392.0,0.003]
[1744076998261,0.34,80395.0,80394.0,0.012438]
[1744076998827,0.248743,80404.0,80394.0,0.261212]
[1744076999037,0.34,80401.0,80393.0,0.012438]
[1744076999199,0.34,80401.0,80399.0,0.004]
[1744077000115,0.352437,80405.0,80395.0,0.012438]
[1744077000318,0.248743,80404.0,80395.0,0.012438]
[1744077000667,0.34,80405.0,80396.0,0.261206]
[1744077000873,0.248743,80404.0,80399.0,0.002]
[1744077001166,0.34,80402.0,80399.0,0.002]
[1744077001377,0.012437,80400.0,80399.0,0.002]
[1744077001533,0.34,80402.0,80399.0,0.002]
[1744077002138,0.34,80405.0,80404.0,0.012437]
[1744077002354,0.34,80405.0,80402.0,0.248749]
[1744077002534,0.34,80405.0,80400.0,0.012437]
[1744077002954,0.34,80405.0,80402.0,0.012437]
[1744077003192,0.34,80405.0,80398.0,0.261197]
[1744077003351,0.34,80405.0,80399.0,0.261193]
[1744077003886,0.34,80405.0,80401.0,0.261189]
[1744077004053,0.34,80405.0,80401.0,0.261188]
[1744077004257,0.34,80405.0,80403.0,0.248746]
[1744077004467,0.34,80405.0,80403.0,0.261183]
[1744077004667,0.00012635,80416.0,80405.0,0.261177]
[1744077004973,0.00012635,80416.0,80405.0,0.3905657]
[1744077005172,0.00012635,80416.0,80405.0,0.8523657]
[1744077006196,0.16676,80406.0,80405.0,0.8593657]
[1744077006800,0.16576,80406.0,80405.0,0.87470135]
[1744077007002,0.16776,80406.0,80405.0,0.88470135]
[1744077007534,0.16876,80406.0,80405.0,0.89370135]
[1744077007684,0.00012635,80416.0,80415.0,0.306644]
[1744077008050,0.00012635,80416.0,80415.0,0.45057355]
[1744077008235,0.16412,80419.0,80415.0,0.45057355]
[1744077008236,0.16412,80419.0,80418.0,0.261135]
[1744077008437,0.16412,80419.0,80418.0,0.8049237]
[1744077008835,0.16412,80419.0,80418.0,0.82727881]
[1744077009601,0.16512,80419.0,80418.0,0.83627881]
[1744077009818,0.98796,80439.0,80435.0,0.012432]
[1744077010022,0.1642882,80436.0,80435.0,0.8048677]
[1744077010229,0.1642882,80436.0,80435.0,0.8510677]
[1744077010414,0.1642882,80436.0,80435.0,0.87342281]
[1744077010632,2e-07,80436.0,80435.0,0.93476366]
[1744077010832,2e-07,80436.0,80435.0,0.95476366]
[1744077011076,2e-07,80436.0,80435.0,0.92022281]
[1744077011987,0.0010002,80436.0,80435.0,0.92322281]
[1744077012364,2e-07,80436.0,80435.0,0.92522281]
[1744077012568,0.0010002,80436.0,80435.0,0.92822281]
[1744077012746,2e-07,80439.0,80438.0,0.261069]
[1744077012947,2e-07,80439.0,80438.0,0.84175366]
[1744077013290,5e-07,80452.0,80451.0,0.261027]
[1744077013452,5e-07,80452.0,80451.0,0.96235655]
[1744077013664,0.1642483,80470.0,80462.0,0.27553285]
[1744077013862,0.1642483,80470.0,80462.0,0.8047807]
[1744077015766,0.1642483,80470.0,80462.0,0.8127807]
[1744077015966,0.1642483,80470.0,80462.0,0.8187807]
[1744077016165,0.1642483,80470.0,80462.0,0.5577887]
[1744077016396,0.1642483,80470.0,80462.0,0.5702167]
[1744077017374,0.1642483,80470.0,80462.0,0.6164167]
[1744077017614,0.1642483,80470.0,80462.0,0.63095755]
[1744077017818,3e-07,80463.0,80462.0,0.65095755]
[1744077018016,3e-07,80463.0,80462.0,0.69775755]
[1744077018260,0.1642483,80470.0,80462.0,0.69775755]
[1744077018261,0.1642483,80470.0,80466.0,0.280979]
[1744077018577,0.0022,80499.0,80480.0,0.248508]
[1744077018861,0.98584626,80481.0,80480.0,0.4833217]
[1744077019063,0.98584626,80481.0,80480.0,0.8977217]
[1744077019944,0.00012626,80481.0,80480.0,0.8977217]
[1744077020942,2.6e-07,80481.0,80480.0,0.93226255]
[1744077021180,0.0022,80499.0,80498.0,0.260875]
[1744077021381,0.00262076,80499.0,80498.0,0.8046637]
[1744077022024,0.00262076,80499.0,80498.0,0.8508637]
[1744077022183,0.00262076,80499.0,80498.0,0.86540455]
[1744077022524,0.00262076,80499.0,80498.0,0.92020455]
[1744077022780,0.00262076,80499.0,80498.0,0.91220455]
[1744077023286,0.00262076,80499.0,80498.0,0.92120455]
[1744077023647,0.00262076,80499.0,80498.0,0.94120455]
[1744077023951,0.00362076,80499.0,80498.0,0.95020455]
[1744077024458,0.00262076,80499.0,80498.0,0.94120455]
[1744077025016,0.00362076,80499.0,80498.0,0.95020455]
[1744077025445,9.6e-07,80503.0,80502.0,0.29540385]
[1744077025813,0.1641681,80514.0,80502.0,0.29540385]
[1744077025814,6e-08,80514.0,80513.0,0.39026785]
[1744077025997,0.00012624,80514.0,80513.0,0.51965655]
[1744077026590,0.98536,80531.0,80516.0,0.04695985]
[1744077026784,0.98536,80531.0,80516.0,0.59062231]
[1744077027597,1e-06,80529.0,80528.0,0.29531885]
[1744077027828,1e-06,80529.0,80528.0,0.47470755]
[1744077029070,1e-06,80529.0,80528.0,0.43370755]
[1744077029193,1e-06,80529.0,80528.0,0.49270755]
[1744077029595,0.0001681,80544.0,80543.0,0.27526985]
[1744077029810,0.00029423,80544.0,80543.0,0.81893231]
[1744077030974,2.3e-07,80544.0,80543.0,0.84593231]
[1744077031114,2.3e-07,80544.0,80543.0,0.94083231]
[1744077031317,0.002,80559.0,80558.0,0.27522185]
[1744077031565,0.0001681,80562.0,80561.0,0.260671]
[1744077031877,0.0001681,80562.0,80561.0,0.3900597]
[1744077032782,0.0001681,80562.0,80561.0,0.3990597]
[1744077034408,0.0001681,80562.0,80561.0,0.4080597]
[1744077034957,0.0001681,80562.0,80561.0,0.88627431]
[1744077035163,0.0001681,80562.0,80561.0,0.87727431]
[1744077035799,0.0001681,80562.0,80561.0,0.88627431]
[1744077038566,0.0001681,80562.0,80561.0,0.93177431]
[1744077038769,8e-05,80585.0,80584.0,0.260597]
[1744077038973,8e-05,80585.0,80584.0,0.3899857]
[1744077039175,0.00050061,80585.0,80584.0,0.3899857]
[1744077041078,0.00050061,80585.0,80584.0,0.3929857]
[1744077041296,0.00050061,80585.0,80584.0,0.003]
[1744077041465,0.00050061,80585.0,80584.0,0.015409]
[1744077041665,0.00050061,80585.0,80584.0,0.023409]
[1744077041890,0.00050061,80585.0,80584.0,0.011]
[1744077042416,0.00050061,80585.0,80584.0,0.01779853]
[1744077042417,0.34050061,80585.0,80584.0,0.01779853]
[1744077042782,0.00050061,80585.0,80584.0,0.03020753]
[1744077043120,0.00050061,80585.0,80584.0,0.01779853]
[1744077043323,0.00050061,80585.0,80584.0,0.03020753]
[1744077043779,0.00050061,80585.0,80584.0,0.01779853]
[1744077044414,0.00050061,80585.0,80584.0,0.03020753]
[1744077044978,0.00050061,80585.0,80584.0,0.01779853]
[1744077045184,0.26109461,80585.0,80584.0,0.01779853]
[1744077046006,0.26109461,80585.0,80584.0,0.01079853]
[1744077046410,0.60109461,80585.0,80584.0,0.01379853]
[1744077046918,0.60109461,80585.0,80584.0,0.003]
[1744077047124,0.60109461,80585.0,80584.0,0.007]
[1744077047727,0.60109461,80585.0,80584.0,0.008]
[1744077048146,0.60109461,80585.0,80584.0,0.005]
[1744077050341,0.73048331,80585.0,80584.0,0.00521424]
[1744077050546,0.73048331,80585.0,80534.0,0.02]
[1744077050547,0.34,80571.0,80562.0,0.248254]
[1744077050800,0.248253,80563.0,80555.0,0.012413]
[1744077050996,0.012413,80560.0,80551.0,0.260701]
[1744077051317,0.260684,80557.0,80552.0,0.1293887]
[1744077051531,0.260697,80553.0,80546.0,0.012415]
[1744077051657,0.248294,80550.0,80547.0,0.1293887]
[1744077052285,0.012414,80554.0,80547.0,0.1293887]
[1744077052286,0.012414,80554.0,80548.0,0.012414]
[1744077052480,0.248271,80557.0,80552.0,0.002]
[1744077052679,0.26069,80555.0,80552.0,0.002]
[1744077052907,0.012414,80553.0,80552.0,0.002]
[1744077053217,0.012414,80552.0,80549.0,0.1293887]
[1744077054236,0.26069,80555.0,80549.0,0.3776827]
[1744077054585,0.34,80561.0,80557.0,0.248271]
[1744077054792,0.012414,80553.0,80549.0,0.1343887]
[1744077055139,0.012414,80552.0,80549.0,0.1293887]
[1744077055514,0.34,80561.0,80560.0,0.260675]
[1744077055943,0.34,80561.0,80556.0,0.248273]
[1744077056114,0.34,80561.0,80557.0,0.248268]
[1744077056319,0.012413,80560.0,80555.0,0.26069]
[1744077056513,0.012413,80560.0,80555.0,0.3900787]
[1744077056721,0.16552,80559.0,80557.0,0.260682]
[1744077057418,0.16552,80559.0,80551.0,0.012414]
[1744077057419,0.00882479,80562.0,80561.0,0.060212]
[1744077057606,0.00882479,80562.0,80561.0,0.4378597]
[1744077058005,0.00882479,80562.0,80561.0,0.19948682]
[1744077058388,0.00882479,80562.0,80561.0,0.15168682]
[1744077058663,0.248243,80566.0,80561.0,0.15168682]
[1744077058887,0.012412,80562.0,80561.0,0.1293887]
[1744077059068,0.012412,80562.0,80558.0,0.41427376]
[1744077059069,0.260674,80561.0,80558.0,0.41427376]
[1744077059446,0.260668,80562.0,80558.0,0.41427376]
[1744077059843,0.260668,80562.0,80561.0,0.018]
[1744077060049,0.26961421,80562.0,80561.0,0.018]
[1744077060630,0.00894621,80562.0,80561.0,0.269671]
[1744077060832,0.34,80564.0,80561.0,0.009]
[1744077061034,0.34,80564.0,80559.0,0.260675]
[1744077061374,0.34,80564.0,80558.0,0.42327376]
[1744077061578,0.248252,80563.0,80558.0,0.43227376]
[1744077061876,0.248252,80563.0,80558.0,0.018]
[1744077062076,0.248252,80563.0,80558.0,0.009]
[1744077062224,0.260675,80560.0,80559.0,0.006]
[1744077062721,0.012413,80559.0,80558.0,0.009]
[1744077062924,0.260675,80560.0,80554.0,0.260694]
[1744077063142,0.001,80562.0,80558.0,0.013]
[1744077063344,0.352413,80559.0,80558.0,0.013]
[1744077064154,0.352413,80559.0,80558.0,0.006]
[1744077064354,0.352413,80559.0,80542.0,0.012415]
[1744077064355,0.012414,80552.0,80547.0,0.012415]
[1744077064555,0.98404,80551.0,80550.0,0.260706]
[1744077064796,0.98404,80551.0,80550.0,0.3900947]
[1744077065006,0.98404,80551.0,80550.0,0.1293887]
[1744077065250,1.232329,80551.0,80550.0,0.1293887]
[1744077065427,0.012415,80544.0,80539.0,0.012416]
[1744077065640,0.1674,80543.0,80542.0,0.260732]
[1744077065844,0.1674,80543.0,80542.0,0.3901207]
[1744077067683,0.1684,80543.0,80542.0,0.3991207]
[1744077067915,0.98404,80551.0,80550.0,0.260706]
[1744077068102,1.15144,80551.0,80550.0,0.3900947]
[1744077068939,0.98404,80551.0,80550.0,0.3900947]
[1744077069087,0.98408,80573.0,80572.0,0.248225]
[1744077069287,1.15148,80573.0,80572.0,0.3900247]
[1744077069487,1.15148,80573.0,80572.0,0.4391247]
[1744077070840,1.15248,80573.0,80572.0,0.4481247]
[1744077072256,1.15248,80573.0,80572.0,0.4571247]
[1744077072412,0.98508,80573.0,80572.0,0.4661247]
[1744077072611,0.00012611,80574.0,80572.0,0.4661247]
[1744077072612,0.00012611,80574.0,80573.0,0.012411]
[1744077072836,0.00012611,80574.0,80573.0,0.1417997]
[1744077073733,0.00012611,80574.0,80573.0,0.1507997]
[1744077074329,0.002,80589.0,80573.0,0.1507997]
[1744077074330,0.002,80589.0,80584.0,0.260597]
[1744077074529,6.8e-07,80600.0,80597.0,0.260555]
[1744077074755,6.8e-07,80600.0,80599.0,0.260549]
[1744077074929,0.00042095,80600.0,80599.0,0.3899377]
[1744077075336,9.5e-07,80608.0,80607.0,0.260522]
[1744077075539,0.00012698,80608.0,80607.0,0.3899107]
[1744077075914,0.00012603,80608.0,80607.0,0.3899107]
[1744077076160,9.8e-07,80608.0,80607.0,0.3899107]
[1744077076362,6.8e-07,80619.0,80618.0,0.060904]
[1744077076539,6.8e-07,80619.0,80618.0,0.60456646]
[1744077077568,6.8e-07,80619.0,80618.0,0.59216246]
[1744077077784,0.16732068,80619.0,80618.0,0.54366246]
[1744077077934,0.16732068,80619.0,80618.0,0.55606646]
[1744077078380,0.16732068,80619.0,80618.0,0.56506646]
[1744077078651,0.16732068,80619.0,80618.0,0.56166246]
[1744077078948,0.16732068,80619.0,80618.0,0.56506646]
[1744077079357,0.16732068,80619.0,80618.0,0.57406646]
[1744077079841,0.16732068,80619.0,80618.0,0.58306646]
[1744077080533,0.16732068,80619.0,80618.0,0.56506646]
[1744077081209,0.16732068,80619.0,80618.0,0.55606646]
[1744077081609,0.16732068,80619.0,80618.0,0.54366246]
[1744077081783,0.16732068,80619.0,80618.0,0.81314946]
[1744077081976,0.16732068,80619.0,80618.0,0.82214946]
[1744077082179,0.16732068,80619.0,80618.0,0.81314946]
[1744077082474,0.16732068,80619.0,80618.0,0.55266246]
[1744077082692,0.16732068,80619.0,80618.0,0.55606646]
[1744077082926,0.16732068,80619.0,80618.0,0.56506646]
[1744077083125,0.16732068,80619.0,80618.0,0.57406646]
[1744077084435,0.16732068,80619.0,80618.0,0.57776784]
[1744077084963,6.8e-07,80619.0,80618.0,0.62306784]
[1744077085717,6.8e-07,80619.0,80618.0,0.61406784]
[1744077085873,6.8e-07,80619.0,80618.0,0.62306784]
[1744077086278,6.8e-07,80619.0,80618.0,0.61406784]
[1744077087392,6.8e-07,80619.0,80618.0,0.57776784]
[1744077088003,6.8e-07,80619.0,80618.0,0.56876784]
[1744077088229,6.8e-07,80619.0,80618.0,0.57776784]
[1744077088439,6.8e-07,80619.0,80618.0,0.56876784]
[1744077088634,6.8e-07,80619.0,80618.0,0.54736384]
[1744077088846,6.8e-07,80619.0,80618.0,0.42697514]
[1744077088847,0.01240468,80619.0,80618.0,0.42697514]
[1744077089343,6.8e-07,80619.0,80618.0,0.56876784]
[1744077089926,6.8e-07,80619.0,80618.0,0.57776784]
[1744077090186,6.8e-07,80619.0,80618.0,0.62706784]
[1744077090622,6.8e-07,80619.0,80618.0,0.61406784]
[1744077091182,6.8e-07,80619.0,80618.0,0.60506784]
[1744077091381,6.8e-07,80619.0,80618.0,0.61406784]
[1744077091800,6.8e-07,80619.0,80618.0,0.62306784]
[1744077091999,6.8e-07,80619.0,80618.0,0.61406784]
[1744077092228,6.8e-07,80619.0,80618.0,0.56876784]
[1744077092432,6.8e-07,80619.0,80618.0,0.57776784]
[1744077092658,6.8e-07,80619.0,80618.0,0.55636384]
[1744077092793,6.8e-07,80619.0,80618.0,0.42697514]
[1744077093005,0.26048468,80619.0,80618.0,0.03070138]
[1744077093194,0.60048468,80619.0,80618.0,0.03070138]
[1744077093401,0.260566,80594.0,80588.0,0.012408]
[1744077093604,0.16724,80593.0,80589.0,0.1417967]
[1744077094019,0.16724,80593.0,80592.0,0.012408]
[1744077094214,0.16724,80593.0,80592.0,0.1417967]
[1744077094624,0.16724,80593.0,80592.0,0.14427813]
[1744077094830,0.16724,80593.0,80592.0,0.1417967]
[1744077095782,0.16824,80593.0,80592.0,0.1487967]
[1744077096003,0.16924,80593.0,80592.0,0.1577967]
[1744077096210,0.16924,80593.0,80592.0,0.1453887]
[1744077096378,0.16924,80593.0,80582.0,0.41427376]
[1744077096379,0.248179,80587.0,80582.0,0.41427376]
[1744077096559,0.248179,80587.0,80583.0,0.1293887]
[1744077096777,0.24807696,80587.0,80583.0,0.1293887]
[1744077097486,0.248175,80589.0,80583.0,0.1293887]
[1744077097648,0.24818,80587.0,80583.0,0.1293887]
[1744077097846,0.260603,80582.0,80581.0,0.00042027]
[1744077098248,0.248194,80582.0,80581.0,0.00042027]
[1744077098454,0.427123,80582.0,80581.0,0.00042027]
[1744077098654,0.002,80587.0,80582.0,0.260603]
[1744077098941,0.16652,80586.0,80585.0,0.012409]
[1744077099114,0.16652,80586.0,80585.0,0.1417977]
[1744077099900,0.248161,80593.0,80586.0,0.260591]
[1744077100101,1.2,80766.0,80595.0,0.012407]
[1744077100102,0.248109,80610.0,80595.0,0.012407]
[1744077100325,1.1498,80596.0,80595.0,0.1417957]
[1744077101674,1.1498,80596.0,80590.0,0.012408]
[1744077101675,0.248174,80589.0,80582.0,0.012409]
[1744077101966,0.248166,80592.0,80587.0,0.260586]
[1744077102101,0.2572798,80593.0,80588.0,0.1293887]
[1744077102308,0.012408,80592.0,80588.0,0.1293887]
[1744077102544,0.248154,80595.0,80588.0,0.1293887]
[1744077102803,0.260561,80595.0,80589.0,0.012408]
[1744077103021,0.012407,80594.0,80589.0,0.1417967]
[1744077103609,0.24816,80593.0,80589.0,0.1293887]
[1744077104240,0.012408,80590.0,80589.0,0.1293887]
[1744077104419,0.248172,80589.0,80583.0,0.012409]
[1744077104627,0.012408,80593.0,80588.0,0.002]
[1744077104837,0.260566,80594.0,80588.0,0.014408]
[1744077105043,0.260572,80592.0,80587.0,0.012408]
[1744077105372,0.012408,80592.0,80589.0,0.001]
[1744077105517,0.012408,80593.0,80589.0,0.004]
[1744077106127,0.248163,80592.0,80588.0,0.249175]
[1744077106329,1.1498,80596.0,80595.0,0.248154]
[1744077106509,1.1498,80596.0,80595.0,0.3899497]
[1744077107776,1.162207,80596.0,80595.0,0.5]
[1744077108178,1.502207,80596.0,80595.0,0.5]
[1744077109983,1.502207,80596.0,80595.0,0.760561]
[1744077109984,1.1498,80596.0,80595.0,0.760561]
[1744077110183,1.1498,80596.0,80595.0,0.8899497]
[1744077110906,1.1498,80596.0,80595.0,0.6293887]
[1744077111108,1.1498,80596.0,80595.0,0.8899497]
[1744077111666,1.1498,80596.0,80595.0,0.6333887]
[1744077111885,1.1498,80596.0,80595.0,0.504]
[1744077111886,1.410358,80596.0,80595.0,0.504]
[1744077112082,1.1498,80596.0,80595.0,0.504]
[1744077116011,1.410358,80596.0,80595.0,0.504]
[1744077116142,1.162207,80596.0,80595.0,0.504]
[1744077116554,1.1498,80596.0,80595.0,0.504]
[1744077118337,1.162207,80596.0,80595.0,0.504]
[1744077118842,1.1498,80596.0,80595.0,0.504]
[1744077119805,1.162207,80596.0,80595.0,0.504]
[1744077120795,1.502207,80596.0,80595.0,0.504]
[1744077120992,1.4898,80596.0,80595.0,0.504]
[1744077121197,1.4898,80596.0,80595.0,0.752154]
[1744077121417,1.1498,80596.0,80595.0,0.764561]
[1744077121903,0.34,80604.0,80601.0,0.012406]
[1744077122103,0.16656,80612.0,80609.0,0.260516]
[1744077122415,0.16656,80612.0,80611.0,0.26051]
[1744077122543,0.16656,80612.0,80611.0,0.4371987]
[1744077124764,0.16756,80612.0,80611.0,0.4441987]
[1744077124966,0.16856,80612.0,80611.0,0.4521987]
[1744077126307,0.16756,80612.0,80611.0,0.4451987]
[1744077126724,0.16856,80612.0,80611.0,0.4541987]
[1744077127105,0.16856,80612.0,80611.0,0.1463887]
[1744077127657,0.180965,80612.0,80611.0,0.017]
[1744077127935,0.520965,80612.0,80611.0,0.017]
[1744077128116,0.520965,80612.0,80611.0,0.008]